bitfinex/quotes_ETHUSD_20250216
["timestamp","ask_amount","ask_price","bid_price","bid_amount"]
[1739712412980,6.1842,2708.0,2707.9,0.00553934]
[1739712419382,8.4002,2708.0,2707.9,0.00553934]
[1739712419585,13.0659,2708.0,2707.9,0.00553934]
[1739712420627,13.4355,2708.0,2707.9,0.00553934]
[1739712420820,13.0659,2708.0,2707.9,0.00553934]
[1739712421348,13.1659,2708.0,2707.9,0.00553934]
[1739712426948,9.1769,2708.0,2707.9,0.00553934]
[1739712427446,13.1659,2708.0,2707.9,0.00553934]
[1739712432493,3.30197,2707.7,2707.6,0.00553996]
[1739712435888,8.66197,2707.7,2707.6,0.00553996]
[1739712436074,8.84472304,2707.7,2707.6,0.00553996]
[1739712436702,9.57203877,2707.7,2707.6,0.00553996]
[1739712440298,13.46103877,2707.7,2707.6,0.00553996]
[1739712441011,13.83063877,2707.7,2707.6,0.00553996]
[1739712444012,13.60393877,2707.7,2707.6,0.00553996]
[1739712447013,9.16493877,2707.7,2707.6,0.00553996]
[1739712447215,6.34931573,2707.7,2707.6,0.00553996]
[1739712454840,6.08731573,2707.7,2707.6,0.00553996]
[1739712455049,6.34931573,2707.7,2707.6,0.00553996]
[1739712455707,6.08731573,2707.7,2707.6,0.76603996]
[1739712455912,5.36,2707.7,2707.6,0.76603996]
[1739712457449,0.26753914,2708.0,2707.6,0.76603996]
[1739712457754,0.00553914,2708.0,2707.6,0.76603996]
[1739712458247,0.7286106,2708.0,2707.6,0.76603996]
[1739712460660,0.9553106,2708.0,2707.6,0.76603996]
[1739712460824,0.34333106,2707.9,2707.6,0.76603996]
[1739712461156,2.55933106,2707.9,2707.6,0.76603996]
[1739712463042,2.55933106,2707.9,2707.6,0.00553996]
[1739712463761,2.216,2707.7,2707.6,0.00553996]
[1739712463913,2.766,2707.7,2707.6,0.00553996]
[1739712464113,3.52083311,2707.7,2707.6,0.00553996]
[1739712465161,7.63653311,2707.7,2707.6,0.00553996]
[1739712465688,7.81940088,2707.7,2707.6,0.00553996]
[1739712465844,13.17940088,2707.7,2707.6,0.00553996]
[1739712466046,12.95270088,2707.7,2707.6,0.00553996]
[1739712469083,13.17940088,2707.7,2707.6,0.00553996]
[1739712474361,13.54900088,2707.7,2707.6,0.00553996]
[1739712477398,6.105,2707.5,2707.0,0.00554118]
[1739712477700,2.216,2707.3,2707.0,0.00554118]
[1739712478009,2.478,2707.2,2707.0,0.00554118]
[1739712479794,2.9927,2707.1,2707.0,0.00554118]
[1739712480001,6.8817,2707.1,2706.7,0.0055418]
[1739712480166,6.655,2706.9,2706.7,0.0055418]
[1739712480362,8.66030643,2706.8,2706.7,0.0055418]
[1739712480607,8.88700643,2706.8,2706.7,0.0055418]
[1739712480992,8.66030643,2706.8,2706.7,0.0055418]
[1739712481303,6.44430643,2706.8,2706.7,0.0055418]
[1739712482700,6.90994375,2706.8,2706.7,0.0055418]
[1739712484306,7.09558072,2706.8,2706.7,0.0055418]
[1739712484599,7.09558072,2706.8,2706.7,0.8041418]
[1739712485301,6.37563732,2706.8,2706.7,0.8041418]
[1739712487999,5.36,2706.8,2706.7,0.8041418]
[1739712492432,5.622,2706.9,2706.7,0.8041418]
[1739712495127,9.511,2706.9,2706.7,0.8041418]
[1739712495426,5.622,2706.9,2706.7,0.8041418]
[1739712495587,6.25763557,2706.9,2706.7,0.8041418]
[1739712498503,5.622,2706.9,2706.7,0.8041418]
[1739712503728,5.622,2706.9,2706.7,0.0055418]
[1739712510534,5.8487,2706.9,2706.7,0.0055418]
[1739712511665,5.622,2706.9,2706.7,0.0055418]
[1739712516265,5.36,2706.8,2706.7,0.0055418]
[1739712516449,6.01332203,2706.8,2706.7,0.0055418]
[1739712519473,6.24002203,2706.8,2706.7,0.0055418]
[1739712521076,8.45902203,2706.8,2706.7,0.0055418]
[1739712521574,8.82862203,2706.8,2706.7,0.0055418]
[1739712521874,8.45902203,2706.8,2706.7,0.0055418]
[1739712532423,8.23232203,2706.8,2706.7,0.0055418]
[1739712532607,0.262,2706.8,2706.7,0.0055418]
[1739712535302,0.91122032,2707.0,2706.7,0.0055418]
[1739712535716,0.262,2706.9,2706.8,0.8134]
[1739712542834,5.622,2706.9,2706.8,0.8134]
[1739712544222,5.622,2706.9,2706.7,0.0055418]
[1739712544390,0.63508147,2706.8,2706.7,0.0055418]
[1739712548831,5.99508147,2706.8,2706.7,0.0055418]
[1739712549734,5.99508147,2706.8,2706.7,0.2055418]
[1739712549947,5.36,2706.8,2706.7,0.2055418]
[1739712550103,5.36,2706.8,2706.7,0.0055418]
[1739712551942,5.36,2706.8,2706.7,0.2055418]
[1739712552249,5.36,2706.8,2706.7,0.0055418]
[1739712554536,5.622,2706.8,2706.7,0.0055418]
[1739712556551,6.27546657,2706.8,2706.7,0.0055418]
[1739712558947,5.622,2706.8,2706.7,0.0055418]
[1739712560456,5.36,2706.8,2706.7,0.0055418]
[1739712560637,5.622,2706.9,2706.7,0.0055418]
[1739712564372,5.36,2706.9,2706.7,0.2055418]
[1739712564534,5.36,2706.9,2706.8,0.8271]
[1739712569586,6.79961468,2707.0,2706.8,0.8271]
[1739712573171,6.53761468,2707.0,2706.8,0.8271]
[1739712581276,7.21813025,2707.0,2706.7,0.2055418]
[1739712582005,7.21813025,2707.0,2706.7,0.0055418]
[1739712585219,0.18235722,2706.9,2706.7,0.0055418]
[1739712587528,5.54235722,2706.9,2706.7,0.0055418]
[1739712607329,0.2267,2706.8,2706.7,0.0055418]
[1739712607529,0.83532397,2706.8,2706.7,0.0055418]
[1739712611283,6.19532397,2706.8,2706.7,0.0055418]
[1739712616809,8.41432397,2706.8,2706.7,0.0055418]
[1739712622198,8.96432397,2706.8,2706.7,0.0055418]
[1739712622393,8.96432397,2706.8,2706.4,0.00554241]
[1739712622394,0.2267,2706.5,2706.4,0.00554241]
[1739712622691,2.4457,2706.5,2706.4,0.00554241]
[1739712623394,8.3557,2706.5,2706.4,0.00554241]
[1739712623898,0.55,2706.4,2706.1,0.00554303]
[1739712624099,6.658,2706.2,2706.1,0.00554303]
[1739712624257,2.219,2706.0,2705.4,0.7843]
[1739712624457,0.2267,2705.8,2705.2,0.78984487]
[1739712624658,2.4457,2705.6,2705.2,0.00554487]
[1739712624862,3.2577,2705.6,2705.2,0.00554487]
[1739712625289,3.44301871,2705.6,2704.9,0.00554549]
[1739712625485,2.219,2705.4,2704.9,0.00554549]
[1739712625858,7.579,2705.3,2704.9,0.00554549]
[1739712626376,0.2267,2705.2,2704.9,0.00554549]
[1739712628126,0.55,2705.1,2704.9,0.00554549]
[1739712629112,5.36,2705.0,2704.9,0.00554549]
[1739712629316,5.99279009,2705.1,2704.9,0.00554549]
[1739712637413,0.262,2705.0,2704.9,0.98984549]
[1739712638882,0.262,2705.0,2704.9,0.00554549]
[1739712640936,5.622,2705.0,2704.9,0.00554549]
[1739712648636,5.36,2705.0,2704.9,0.00554549]
[1739712648838,5.36,2705.0,2704.9,1.02954549]
[1739712649041,5.36554467,2705.3,2705.2,1.024]
[1739712658747,0.00554467,2705.3,2705.2,1.024]
[1739712663076,0.00554405,2705.6,2705.5,0.2]
[1739712663290,0.00554405,2705.6,2705.5,0.9553]
[1739712666179,0.00554405,2705.6,2705.5,0.99225119]
[1739712666506,0.00554405,2705.6,2705.5,0.9553]
[1739712673781,0.00554344,2705.9,2705.8,0.2]
[1739712673970,0.00554344,2705.9,2705.8,1.58524445]
[1739712674487,0.00554344,2705.9,2705.8,1.5483]
[1739712674683,0.00554344,2705.9,2705.8,1.5852442]
[1739712674856,0.00554344,2705.9,2705.8,1.68524419]
[1739712675185,0.00554344,2705.9,2705.8,1.6483]
[1739712675990,0.00554344,2705.9,2705.8,1.68524294]
[1739712676666,0.00554344,2705.9,2705.8,1.6483]
[1739712676870,0.00554344,2705.9,2705.8,1.68524295]
[1739712677480,0.00554344,2705.9,2705.8,2.1168243]
[1739712679168,0.00554282,2706.2,2706.1,1.1983]
[1739712679355,0.00554282,2706.2,2706.1,1.42006839]
[1739712680282,0.00554282,2706.2,2706.1,1.38313]
[1739712680484,0.00554282,2706.2,2706.1,1.97006847]
[1739712680792,0.00554282,2706.2,2706.1,1.93313]
[1739712682552,0.00554282,2706.2,2706.1,10.22313]
[1739712682758,0.00554221,2706.5,2706.4,0.3]
[1739712682988,0.00554221,2706.5,2706.4,1.10913465]
[1739712683572,0.00554221,2706.5,2706.4,1.65913465]
[1739712683779,0.00554221,2706.5,2706.4,2.14504812]
[1739712688512,0.00554221,2706.5,2706.4,7.43504812]
[1739712688804,0.00554221,2706.5,2706.4,10.43504812]
[1739712688994,0.00554221,2706.5,2706.4,10.39811347]
[1739712692714,0.00554221,2706.5,2706.4,10.20131347]
[1739712696923,0.00554159,2706.8,2706.7,1.4109]
[1739712697248,0.00554159,2706.8,2706.7,7.30117836]
[1739712697419,0.00554159,2706.8,2706.7,10.30117836]
[1739712697623,0.00554159,2706.8,2706.7,11.20151321]
[1739712698209,0.4488,2707.0,2706.9,1.6294]
[1739712698450,0.4488,2707.0,2706.9,1.66632408]
[1739712698649,0.4488,2707.0,2706.9,5.81201781]
[1739712699550,0.4488,2707.0,2706.9,5.77509373]
[1739712703547,0.4488,2707.0,2706.9,20.00509373]
[1739712705148,0.4488,2707.0,2706.9,20.94235787]
[1739712712071,0.00554098,2707.1,2707.0,5.58823579]
[1739712712275,0.00554098,2707.1,2707.0,6.82441444]
[1739712714791,0.00554098,2707.1,2707.0,21.05441444]
[1739712714946,0.00554098,2707.1,2707.0,21.01749993]
[1739712719083,0.00554037,2707.4,2707.3,0.8532]
[1739712719243,0.00554037,2707.4,2707.3,19.84808059]
[1739712719442,0.00554037,2707.4,2707.3,21.7959722]
[1739712720578,0.00554037,2707.4,2707.3,20.30870806]
[1739712720785,0.00554037,2707.4,2707.3,19.78000806]
[1739712721802,0.00554037,2707.4,2707.3,19.58000806]
[1739712722687,0.00554037,2707.4,2707.3,20.86795847]
[1739712722886,0.00554037,2707.4,2707.3,21.06795847]
[1739712724299,0.00554037,2707.4,2707.3,12.12795847]
[1739712724874,0.00554037,2707.4,2707.3,11.92795847]
[1739712725764,0.00554037,2707.4,2707.3,11.11595847]
[1739712725990,0.00554037,2707.4,2707.3,11.31595847]
[1739712726205,0.00554037,2707.4,2707.3,11.86595847]
[1739712726900,0.00554037,2707.4,2707.3,12.66615847]
[1739712728316,0.00554037,2707.4,2707.3,13.13874918]
[1739712728529,0.00554037,2707.4,2707.3,13.60342261]
[1739712729624,0.00554037,2707.4,2707.3,22.54342261]
[1739712736415,0.00553975,2707.7,2707.6,1.6534]
[1739712736611,0.00553975,2707.7,2707.6,6.27111634]
[1739712738931,0.00553975,2707.7,2707.6,20.50111634]
[1739712739142,0.00553975,2707.7,2707.6,20.46420291]
[1739712740753,0.00553975,2707.7,2707.6,20.64484904]
[1739712740954,0.00553975,2707.7,2707.6,20.44804904]
[1739712753907,0.00553914,2708.0,2707.9,0.1064]
[1739712754207,0.00553914,2708.0,2707.9,20.32470693]
[1739712754373,0.00553914,2708.0,2707.9,20.28779719]
[1739712757701,0.00553852,2708.3,2708.2,1.4513]
[1739712757861,0.00553852,2708.3,2708.2,1.96079623]
[1739712758061,0.00553852,2708.3,2708.2,19.68226271]
[1739712758259,0.00553791,2708.6,2708.5,1.4513]
[1739712758493,0.82443668,2709.2,2708.8,0.1064]
[1739712758698,0.82443668,2709.2,2708.8,1.75020162]
[1739712759007,0.00553668,2709.2,2708.8,1.75020162]
[1739712761083,0.00553668,2709.2,2708.8,2.22279233]
[1739712761599,0.00553668,2709.2,2708.8,20.13120747]
[1739712761907,0.00553668,2709.2,2708.8,22.12598864]
[1739712763374,0.00553668,2709.2,2709.1,0.1064]
[1739712763665,0.00553668,2709.2,2709.1,17.92328962]
[1739712763865,0.00553668,2709.2,2709.1,17.8864]
[1739712765072,0.8189,2709.6,2709.4,0.1064]
[1739712765273,0.8189,2709.6,2709.4,1.02204]
[1739712766529,0.82443607,2709.5,2709.4,1.02204]
[1739712766701,0.82443607,2709.5,2709.4,0.91564]
[1739712768709,0.82443607,2709.5,2709.4,6.20564]
[1739712769033,0.82443607,2709.5,2709.4,6.93641831]
[1739712772358,0.82443607,2709.5,2709.4,0.76767806]
[1739712772543,0.82443607,2709.5,2709.4,0.73077831]
[1739712772917,0.82443607,2709.5,2709.4,1.28077831]
[1739712778054,0.82443607,2709.5,2709.4,0.55]
[1739712780361,0.82443607,2709.5,2709.2,5.29]
[1739712780723,0.82443607,2709.5,2709.3,0.55]
[1739712784068,0.92443607,2709.5,2709.2,5.29]
[1739712784438,0.92443607,2709.5,2709.1,0.00553689]
[1739712787676,0.8062,2709.2,2709.1,0.00553689]
[1739712792496,0.8998,2709.2,2709.1,0.00553689]
[1739712796982,1.55453272,2709.2,2709.1,0.00553689]
[1739712797151,0.74833272,2709.2,2709.1,0.00553689]
[1739712797359,1.55453272,2709.2,2709.1,0.00553689]
[1739712801598,0.8998,2709.2,2709.1,0.00553689]
[1739712810114,1.64952484,2709.2,2709.1,0.00553689]
[1739712816124,2.01252484,2709.2,2709.1,0.00553689]
[1739712816322,7.37252484,2709.2,2709.1,0.00553689]
[1739712816717,6.3598,2709.2,2709.1,0.00553689]
[1739712816917,0.9998,2709.2,2709.1,0.00553689]
[1739712817937,0.1936,2709.2,2709.1,0.00553689]
[1739712819807,0.0936,2709.4,2709.1,0.77483689]
[1739712820007,0.1,2709.2,2709.1,0.77483689]
[1739712820399,0.0936,2709.4,2709.1,0.77483689]
[1739712820599,0.1936,2709.2,2709.1,0.77483689]
[1739712823531,0.1936,2709.2,2709.1,0.00553689]
[1739712831452,0.1,2709.2,2709.1,0.00553689]
[1739712832285,0.1,2709.2,2709.1,0.78113689]
[1739712833247,0.1,2709.4,2709.1,0.78113689]
[1739712841194,0.1,2709.4,2709.1,1.44325058]
[1739712841403,0.09913607,2709.5,2709.1,0.00553689]
[1739712841404,0.1,2709.2,2709.1,0.00553689]
[1739712841614,0.8657,2709.2,2709.1,0.00553689]
[1739712842703,0.1,2709.2,2709.1,0.00553689]
[1739712845507,0.8657,2709.2,2709.1,0.00553689]
[1739712847020,6.2257,2709.2,2709.1,0.00553689]
[1739712847226,6.85763,2709.2,2709.1,0.00553689]
[1739712861899,9.07363,2709.2,2709.1,0.00553689]
[1739712864581,6.85763,2709.2,2709.1,0.00553689]
[1739712866669,6.25393,2709.2,2709.1,0.00553689]
[1739712867188,6.44753,2709.2,2709.1,0.00553689]
[1739712868382,5.8156,2709.2,2709.1,0.00553689]
[1739712868709,5.4536,2709.2,2709.1,0.00553689]
[1739712869083,5.5536,2709.2,2709.1,0.00553689]
[1739712869477,5.4036,2709.2,2709.1,0.00553689]
[1739712869677,5.5036,2709.2,2709.1,0.00553689]
[1739712871382,5.4036,2709.2,2709.1,0.00553689]
[1739712871611,5.5036,2709.2,2709.1,0.00553689]
[1739712872181,6.3232,2709.2,2709.1,0.00553689]
[1739712872381,6.98172,2709.2,2709.1,0.00553689]
[1739712873426,5.5036,2709.2,2709.1,0.00553689]
[1739712882741,6.2983,2709.2,2709.1,0.00553689]
[1739712884948,5.5036,2709.2,2709.1,0.00553689]
[1739712894869,6.3246,2709.2,2709.1,0.00553689]
[1739712897528,5.5036,2709.2,2709.1,0.00553689]
[1739712897806,6.08016,2709.2,2709.1,0.00553689]
[1739712899673,6.83686,2709.2,2709.1,0.00553689]
[1739712900811,9.15286,2709.2,2709.1,0.00553689]
[1739712909526,13.04686,2709.2,2709.1,0.00553689]
[1739712920757,13.41706,2709.2,2709.1,0.00553689]
[1739712922449,9.52306,2709.2,2709.1,0.00553689]
[1739712922792,9.41486,2709.2,2709.1,0.00553689]
[1739712923551,13.67906,2709.2,2709.1,0.00553689]
[1739712925067,14.42906,2709.2,2709.1,0.00553689]
[1739712930069,14.22906,2709.2,2709.1,0.00553689]
[1739712930239,14.42906,2709.2,2709.1,0.00553689]
[1739712935185,14.42906,2709.2,2709.1,0.00553689]
[1739712939585,14.42906,2709.2,2708.8,0.0055375]
[1739712939586,2.5096,2708.6,2708.5,0.00553812]
[1739712939787,8.53502,2708.6,2708.5,0.00553812]
[1739712940193,0.1936,2708.0,2707.8,0.7582]
[1739712940356,5.7656,2708.0,2707.8,0.7582]
[1739712942594,7.9816,2708.0,2707.8,0.7582]
[1739712943385,5.5036,2708.0,2707.8,0.7582]
[1739712943701,5.7656,2708.0,2707.9,0.76373934]
[1739712945274,5.5036,2708.0,2707.9,0.76373934]
[1739712947362,6.05396,2708.0,2707.9,0.76373934]
[1739712949772,8.26996,2708.0,2707.9,0.00553934]
[1739712950318,8.45268652,2708.0,2707.9,0.00553934]
[1739712952084,6.23668652,2708.0,2707.9,0.80173934]
[1739712952415,5.68632652,2708.0,2707.9,0.80173934]
[1739712953312,5.68632652,2708.0,2707.9,0.00553934]
[1739712960229,6.47142652,2708.0,2707.9,0.00553934]
[1739712960422,8.68742652,2708.0,2707.9,0.00553934]
[1739712960826,12.94612652,2708.0,2707.9,0.00553934]
[1739712961033,14.25073917,2708.0,2707.9,0.00553934]
[1739712970033,9.30693917,2708.0,2707.9,0.00553934]
[1739712970227,9.46893917,2708.0,2707.9,0.00553934]
[1739712970424,5.68632652,2708.0,2707.9,0.83343934]
[1739712970631,5.94832652,2708.0,2707.9,0.83343934]
[1739712970942,6.31802652,2708.0,2707.9,0.83343934]
[1739712972043,8.53402652,2708.0,2707.9,0.00553934]
[1739712972236,9.39742917,2708.0,2707.9,0.00553934]
[1739712973421,5.68632652,2708.0,2707.9,0.00553934]
[1739712973644,5.94832652,2708.0,2707.9,0.00553934]
[1739712973947,0.4556,2708.0,2707.9,0.83343934]
[1739712974541,0.1936,2708.0,2707.9,0.83343934]
[1739712975515,0.1936,2708.0,2707.9,1.38343934]
[1739712976772,0.1,2708.0,2707.9,1.38343934]
[1739712977722,0.1936,2708.0,2707.9,0.83343934]
[1739712993818,5.5036,2708.0,2707.9,0.00553934]
[1739712994015,6.12964,2708.0,2707.9,0.00553934]
[1739712997942,6.91184,2708.0,2707.9,0.00553934]
[1739712998303,7.65125319,2708.0,2707.9,0.00553934]
[1739713005561,9.86725319,2708.0,2707.9,0.00553934]
[1739713006348,9.96725319,2708.0,2707.9,0.00553934]
[1739713007436,13.85625319,2708.0,2707.9,0.00553934]
[1739713007867,14.22595319,2708.0,2707.9,0.00553934]
[1739713009969,2.316,2707.7,2707.6,0.00553996]
[1739713010180,3.73817,2707.7,2707.6,0.00553996]
[1739713010463,3.83177,2707.7,2707.6,0.00553996]
[1739713014680,7.72077,2707.7,2707.6,0.00553996]
[1739713014880,0.1936,2707.4,2707.3,0.00554057]
[1739713015065,5.7666,2707.4,2707.3,0.00554057]
[1739713015266,6.35326,2707.4,2707.3,0.00554057]
[1739713016078,7.10466,2707.4,2707.3,0.00554057]
[1739713016579,9.32066,2707.4,2707.3,0.00554057]
[1739713017766,10.14300111,2707.4,2707.3,0.00554057]
[1739713020852,10.32554545,2707.4,2707.3,0.00554057]
[1739713024689,9.31114545,2707.4,2707.3,0.00554057]
[1739713024903,9.57314545,2707.4,2707.3,0.00554057]
[1739713025694,13.46214545,2707.4,2707.3,0.00554057]
[1739713026053,13.20014545,2707.4,2707.3,0.00554057]
[1739713026293,13.46214545,2707.4,2707.3,0.00554057]
[1739713029859,13.83184545,2707.4,2707.3,0.00554057]
[1739713030589,9.94284545,2707.4,2707.3,0.00554057]
[1739713030798,9.47314545,2707.4,2707.3,0.77024057]
[1739713031489,9.47314545,2707.4,2707.3,0.00554057]
[1739713037206,6.67048545,2707.4,2707.3,0.00554057]
[1739713037380,6.57048545,2707.4,2707.3,0.00554057]
[1739713037582,6.67048545,2707.4,2707.3,0.00554057]
[1739713040972,3.1221,2707.1,2707.0,0.00554118]
[1739713041302,3.3157,2707.1,2707.0,0.00554118]
[1739713041476,4.09117,2707.1,2707.0,0.00554118]
[1739713042789,3.99117,2707.1,2707.0,0.00554118]
[1739713043013,3.18507,2707.1,2707.0,0.00554118]
[1739713043401,2.4096,2707.1,2707.0,0.00554118]
[1739713043981,2.3096,2707.1,2707.0,0.00554118]
[1739713044304,2.4096,2707.1,2707.0,0.00554118]
[1739713044998,7.7196,2707.1,2707.0,0.00554118]
[1739713045316,7.8196,2707.1,2707.0,0.00554118]
[1739713045532,9.02665,2707.1,2707.0,0.00554118]
[1739713048920,9.28865,2707.1,2707.0,0.00554118]
[1739713049393,7.9816,2707.1,2707.0,0.77484118]
[1739713050103,7.7196,2707.1,2707.0,0.77484118]
[1739713050422,5.7656,2707.1,2707.0,0.77484118]
[1739713050618,5.5036,2707.1,2707.0,0.77484118]
[1739713050782,5.7666,2707.1,2707.0,0.77484118]
[1739713050985,5.5036,2707.1,2707.0,0.77484118]
[1739713051608,0.1936,2707.1,2707.0,0.77484118]
[1739713054152,0.1936,2707.1,2707.0,0.00554118]
[1739713054491,5.5036,2707.1,2707.0,0.00554118]
[1739713054695,6.13515,2707.1,2707.0,0.00554118]
[1739713058343,6.86474247,2707.1,2707.0,0.00554118]
[1739713058999,7.12774247,2707.1,2707.0,0.00554118]
[1739713061212,6.49619247,2707.1,2707.0,0.00554118]
[1739713061417,6.49619247,2707.1,2707.0,0.76004118]
[1739713063337,6.23319247,2707.1,2707.0,0.76004118]
[1739713063563,6.49619247,2707.1,2707.0,0.76004118]
[1739713065768,6.23319247,2707.1,2707.0,0.76004118]
[1739713066064,6.49619247,2707.1,2707.0,0.76004118]
[1739713066406,5.5036,2707.1,2707.0,0.76004118]
[1739713069767,0.1936,2707.1,2707.0,0.76004118]
[1739713083473,0.1936,2707.1,2707.0,0.00554118]
[1739713084870,0.1936,2707.1,2707.0,0.78964118]
[1739713101867,0.1,2707.1,2707.0,0.78964118]
[1739713102068,0.0936,2707.3,2707.0,0.78964118]
[1739713102268,0.00554037,2707.4,2707.2,0.7835]
[1739713102465,0.0936,2707.3,2707.2,0.7835]
[1739713110016,0.0936,2707.1,2707.0,0.78904118]
[1739713112492,0.1936,2707.1,2707.0,0.00554118]
[1739713131367,0.74396,2707.1,2707.0,0.00554118]
[1739713131521,1.53896,2707.1,2707.0,0.00554118]
[1739713134457,0.1936,2707.1,2707.0,0.00554118]
[1739713136349,0.0936,2707.1,2707.0,0.00554118]
[1739713136666,0.0936,2707.1,2707.0,0.81414118]
[1739713137734,5.41,2707.3,2707.0,0.81414118]
[1739713138263,0.0936,2707.1,2707.0,0.81414118]
[1739713142673,0.0936,2707.1,2707.0,0.00554118]
[1739713143872,0.8464,2707.1,2707.0,0.00554118]
[1739713148984,6.1564,2707.1,2707.0,0.00554118]
[1739713149183,7.06205872,2707.1,2707.0,0.00554118]
[1739713151183,7.78901693,2707.1,2707.0,0.00554118]
[1739713151993,7.06205872,2707.1,2707.0,0.00554118]
[1739713152203,5.4036,2707.1,2707.0,0.00554118]
[1739713155593,5.4036,2707.1,2707.0,0.00554118]
[1739713157392,5.4036,2707.1,2707.0,0.78304118]
[1739713161099,0.0936,2707.3,2707.0,0.78304118]
[1739713161302,0.0936,2707.1,2707.0,0.78304118]
[1739713163588,0.1936,2707.1,2707.0,0.00554118]
[1739713166685,1.0151,2707.1,2707.0,0.00554118]
[1739713167375,3.2331,2707.1,2707.0,0.00554118]
[1739713167565,3.63018758,2707.1,2707.0,0.00554118]
[1739713167895,8.06918758,2707.1,2707.0,0.00554118]
[1739713168683,7.15408758,2707.1,2706.7,0.0055418]
[1739713168882,0.1,2706.8,2706.7,0.0055418]
[1739713169227,0.1,2706.5,2706.4,0.00554241]
[1739713169388,7.628,2706.5,2706.4,0.00554241]
[1739713169589,8.3908,2706.5,2706.4,0.00554241]
[1739713171526,6.1728,2706.5,2706.4,0.00554241]
[1739713172031,6.9943,2706.5,2706.4,0.00554241]
[1739713173880,7.75216873,2706.5,2706.4,0.00554241]
[1739713174112,7.93583117,2706.5,2706.4,0.00554241]
[1739713175279,6.43086873,2706.5,2706.4,0.00554241]
[1739713175708,7.25236873,2706.5,2706.4,0.00554241]
[1739713176307,6.43086873,2706.5,2706.4,0.00554241]
[1739713177010,5.673,2706.5,2706.4,0.00554241]
[1739713177414,5.41,2706.5,2706.4,0.00554241]
[1739713178316,5.31,2706.5,2706.4,0.77094241]
[1739713178820,0.1,2706.7,2706.4,0.77094241]
[1739713179216,0.1,2706.7,2706.4,0.00554241]
[1739713179980,0.1,2706.5,2706.4,0.00554241]
[1739713180792,0.1,2706.7,2706.4,0.00554241]
[1739713182899,0.1,2706.5,2706.4,0.00554241]
[1739713183217,0.8786,2706.5,2706.4,0.00554241]
[1739713185412,1.49746,2706.5,2706.4,0.00554241]
[1739713187227,0.71886,2706.5,2706.4,0.00554241]
[1739713189732,1.49746,2706.5,2706.4,0.00554241]
[1739713190590,6.80746,2706.5,2706.4,0.00554241]
[1739713192594,9.02546,2706.5,2706.4,0.00554241]
[1739713196731,0.9052,2706.2,2706.1,0.00554303]
[1739713197522,8.4332,2706.2,2706.1,0.00554303]
[1739713197713,9.27652,2706.2,2706.1,0.00554303]
[1739713201601,13.90008045,2706.2,2706.1,0.00554303]
[1739713202606,13.71552,2706.2,2706.1,0.00554303]
[1739713203475,3.1167,2705.9,2705.8,0.00554364]
[1739713203625,3.3807,2705.9,2705.8,0.00554364]
[1739713203824,4.65867,2705.9,2705.8,0.00554364]
[1739713204113,5.20867,2705.9,2705.8,0.00554364]
[1739713205640,9.09767,2705.9,2705.8,0.00554364]
[1739713206742,9.28490945,2705.9,2705.8,0.00554364]
[1739713208362,14.59490945,2705.9,2705.8,0.00554364]
[1739713208908,10.15590945,2705.9,2705.8,0.00554364]
[1739713209360,10.70590945,2705.9,2705.8,0.00554364]
[1739713210157,14.59490945,2705.9,2705.8,0.00554364]
[1739713214447,14.79490945,2705.9,2705.8,0.00554364]
[1739713216242,15.16460945,2705.9,2705.8,0.00554364]
[1739713219664,0.1,2704.6,2704.0,0.00554733]
[1739713219815,5.573,2704.5,2704.3,0.76724672]
[1739713220017,0.1,2704.4,2704.3,0.76724672]
[1739713221475,0.1,2704.4,2704.3,0.00554672]
[1739713222187,7.628,2704.4,2704.0,0.00554733]
[1739713222346,0.1,2704.1,2703.9,0.8241]
[1739713222529,8.14686,2704.3,2703.7,0.82964795]
[1739713222530,0.1,2703.8,2703.7,0.82964795]
[1739713222729,5.41,2703.8,2703.7,0.82964795]
[1739713224183,6.1584692,2703.8,2703.7,0.82964795]
[1739713225232,6.1584692,2703.8,2703.7,0.00554795]
[1739713225448,6.80071612,2703.8,2703.7,0.00554795]
[1739713228237,6.1584692,2703.8,2703.7,0.00554795]
[1739713228675,0.7484692,2703.8,2703.7,0.82964795]
[1739713228911,0.8484692,2703.8,2703.7,0.82964795]
[1739713229568,0.7484692,2703.8,2703.7,0.82964795]
[1739713229991,5.31,2704.3,2703.7,0.82964795]
[1739713230197,0.364,2704.4,2703.7,0.82964795]
[1739713230784,0.1,2704.2,2703.7,0.82964795]
[1739713231285,0.83112596,2704.6,2703.8,0.86107978]
[1739713231480,0.83112596,2704.6,2703.8,0.86107526]
[1739713231686,0.83112596,2704.6,2703.8,0.8241]
[1739713232212,0.1,2704.2,2703.8,0.8241]
[1739713232991,0.1,2704.0,2703.8,0.8241]
[1739713234139,0.365,2704.0,2703.8,0.8241]
[1739713234287,5.675,2704.0,2703.8,0.8241]
[1739713234986,0.1,2703.9,2703.8,0.8241]
[1739713235400,5.575,2704.0,2703.8,0.8241]
[1739713235603,5.31,2704.0,2703.8,0.8241]
[1739713236447,0.1,2703.9,2703.8,0.8241]
[1739713237043,0.84628189,2703.9,2703.8,0.8241]
[1739713237645,0.74628189,2703.9,2703.8,0.8241]
[1739713237851,5.31,2704.0,2703.8,0.8241]
[1739713238141,0.00554713,2704.1,2703.8,0.8241]
[1739713238747,0.7516833,2704.0,2703.8,0.8241]
[1739713238957,0.00554713,2704.1,2703.8,0.8241]
[1739713242138,0.1,2704.0,2703.8,0.8241]
[1739713242803,0.1,2703.8,2703.7,0.00554795]
[1739713243199,0.72101,2703.8,2703.7,0.00554795]
[1739713244899,0.368,2703.8,2703.7,0.00554795]
[1739713245102,5.41,2704.0,2703.8,0.7849]
[1739713245436,0.1,2704.0,2703.8,0.7849]
[1739713245817,0.00554713,2704.1,2703.8,0.7849]
[1739713246306,0.74707157,2704.0,2703.8,0.7849]
[1739713246921,0.00554713,2704.1,2703.8,0.7849]
[1739713253674,0.1,2703.9,2703.7,0.00554795]
[1739713256154,5.41,2703.9,2703.7,0.00554795]
[1739713256354,0.61371624,2703.8,2703.7,0.00554795]
[1739713258627,0.1,2703.5,2703.4,0.00554856]
[1739713258827,0.1,2703.5,2703.1,0.00554918]
[1739713258828,0.1,2703.2,2703.1,0.00554918]
[1739713260632,1.0957,2703.5,2703.1,0.00554918]
[1739713262064,0.268,2703.5,2703.1,0.00554918]
[1739713262267,0.73650092,2703.2,2703.1,0.81704918]
[1739713262948,0.73650092,2703.2,2703.1,0.00554918]
[1739713264042,0.73650092,2703.2,2703.1,0.81704918]